bitfinex/quotes_SOLUSD_20240816
["timestamp","ask_amount","ask_price","bid_price","bid_amount"]
[1723812290136,7.159,139.69,139.65,0.12549]
[1723812290527,7.1592,139.68,139.65,0.12549]
[1723812290851,7.1592,139.68,139.63,7.1616]
[1723812291051,7.1597,139.67,139.62,25.19259]
[1723812291227,7.1593,139.68,139.63,0.12549]
[1723812291628,20.0,139.7,139.63,7.28719]
[1723812291935,7.1593,139.68,139.63,7.28719]
[1723812292641,0.12549,139.69,139.64,17.9023]
[1723812292968,20.0,139.7,139.64,0.12549]
[1723812293441,43.14,139.75,139.65,17.9008]
[1723812293758,43.14,139.75,139.66,0.12549]
[1723812294292,43.14,139.73,139.66,0.12549]
[1723812294468,43.14,139.73,139.68,7.1587]
[1723812294469,7.1567,139.73,139.68,7.1587]
[1723812294766,7.1567,139.73,139.68,7.1591]
[1723812295249,7.1562,139.74,139.69,7.1586]
[1723812296262,43.14,139.73,139.67,17.8984]
[1723812296436,7.1582,139.7,139.65,7.1606]
[1723812296776,7.1577,139.71,139.66,7.1602]
[1723812297638,7.1577,139.71,139.61,50.8664]
[1723812297639,43.14,139.71,139.61,50.8664]
[1723812297969,7.1588,139.69,139.64,7.1612]
[1723812298201,0.12549,139.7,139.65,7.1607]
[1723812298202,7.1583,139.7,139.65,7.1607]
[1723812299275,7.1583,139.7,139.66,7.1601]
[1723812299575,7.1577,139.71,139.66,7.1601]
[1723812299779,7.1572,139.72,139.66,0.12549]
[1723812299981,7.1566,139.73,139.68,7.1591]
[1723812300347,43.14,139.77,139.68,0.12549]
[1723812300660,43.14,139.77,139.7,7.1577]
[1723812300978,43.14,139.75,139.68,0.12549]
[1723812301160,43.14,139.73,139.68,0.12549]
[1723812301357,43.14,139.73,139.63,17.9044]
[1723812301677,43.14,139.71,139.64,7.1608]
[1723812301984,43.14,139.71,139.61,32.9599]
[1723812301985,43.14,139.67,139.61,40.1226]
[1723812302347,6.73839688,139.76,139.61,40.1226]
[1723812302348,0.12549,139.76,139.64,0.12549]
[1723812302571,43.14,139.7,139.64,0.12549]
[1723812302891,0.12549,139.69,139.62,17.9049]
[1723812303045,43.14,139.72,139.64,17.9021]
[1723812303243,0.12549,139.71,139.64,17.9021]
[1723812303547,27.23059799,139.78,139.63,63.14]
[1723812303775,56.2284,139.78,139.69,17.8958]
[1723812303946,43.14,139.76,139.69,17.8958]
[1723812304150,7.1557,139.75,139.7,7.1579]
[1723812304355,56.2284,139.78,139.64,56.05518]
[1723812304356,43.14,139.78,139.71,17.8933]
[1723812304574,7.1541,139.78,139.73,7.1565]
[1723812304752,43.14,139.8,139.73,7.1565]
[1723812304957,7.1542,139.78,139.73,7.1565]
[1723812305154,7.1551,139.76,139.71,17.8933]
[1723812305380,43.14,139.78,139.71,17.8933]
[1723812305595,43.14,139.78,139.69,31.4578]
[1723812305761,7.1561,139.74,139.69,38.6161]
[1723812305967,7.1556,139.75,139.7,7.1581]
[1723812306498,7.1542,139.78,139.73,7.1563]
[1723812306798,43.14,139.79,139.72,17.8921]
[1723812307096,7.1555,139.76,139.72,25.0491]
[1723812307303,43.14,139.79,139.72,17.8921]
[1723812307463,43.14,139.81,139.73,0.12549]
[1723812307663,13.0117,139.82,139.73,0.12549]
[1723812307664,13.0117,139.82,139.73,7.28199]
[1723812307975,43.14,139.8,139.73,7.1565]
[1723812308185,43.14,139.8,139.74,7.156]
[1723812308378,43.14,139.8,139.73,7.1565]
[1723812308587,43.14,139.8,139.72,18.01759]
[1723812308892,43.14,139.76,139.69,49.3542]
[1723812309262,43.14,139.78,139.71,17.893]
[1723812309513,20.0,139.77,139.73,7.1565]
[1723812309664,27.1546,139.77,139.72,7.157]
[1723812310672,7.1552,139.76,139.71,25.0506]
[1723812310882,27.1547,139.77,139.72,7.157]
[1723812311189,7.1536,139.79,139.74,7.1556]
[1723812311396,43.14,139.82,139.75,7.1555]
[1723812311397,7.1531,139.8,139.75,7.1555]
[1723812311598,7.1531,139.8,139.76,7.155]
[1723812311890,7.1531,139.8,139.77,1.43004751]
[1723812312106,7.1531,139.8,139.76,7.1551]
[1723812312265,64.77365295,139.86,139.73,63.01619]
[1723812312266,43.14,139.84,139.75,18.01359]
[1723812312466,7.1524,139.82,139.77,7.1545]
[1723812313106,43.9750588,139.86,139.78,0.12549]
[1723812313409,0.8350588,139.86,139.81,17.8805]
[1723812313584,0.8350588,139.86,139.82,7.1519]
[1723812313790,0.8350588,139.86,139.78,93.59138]
[1723812313974,0.8350588,139.86,139.81,7.1523]
[1723812313975,43.9750588,139.86,139.81,7.1523]
[1723812314176,51.1250588,139.86,139.81,7.1523]
[1723812314901,7.1505,139.85,139.8,25.0347]
[1723812315200,0.8350588,139.86,139.83,7.1514]
[1723812316093,0.8350588,139.86,139.84,7.1508]
[1723812316401,0.8350588,139.86,139.84,7.27629]
[1723812316584,0.8350588,139.86,139.85,7.1505]
[1723812316970,0.8350588,139.86,139.85,7.27599]
[1723812317171,10.0,139.9,139.85,7.27599]
[1723812317172,10.0,139.9,139.88,0.12549]
[1723812317376,10.0,139.9,139.89,7.27389]
[1723812317583,10.0,139.9,139.89,0.12549]
[1723812317814,10.0,139.9,139.88,0.12549]
[1723812317981,10.0,139.9,139.85,31.064]
[1723812317982,7.1495,139.87,139.85,31.064]
[1723812318179,10.0,139.9,139.85,31.064]
[1723812318424,10.0,139.9,139.81,12.5611]
[1723812318425,7.1505,139.85,139.81,12.5611]
[1723812318579,43.14,139.84,139.8,30.0667]
[1723812318785,43.14,139.82,139.74,30.0667]
[1723812318976,43.14,139.8,139.74,37.2224]
[1723812319177,43.14,139.82,139.74,30.0667]
[1723812319393,20.25098,139.81,139.74,30.0667]
[1723812319587,20.12549,139.81,139.74,47.956]
[1723812319800,20.12549,139.81,139.75,7.1551]
[1723812320110,20.12549,139.81,139.74,47.956]
[1723812320111,43.14,139.8,139.74,55.1117]
[1723812320416,20.12549,139.81,139.76,7.1549]
[1723812320635,20.12549,139.81,139.74,47.956]
[1723812320636,20.12549,139.81,139.74,55.1116]
[1723812320823,43.14,139.8,139.75,7.1551]
[1723812321007,20.12549,139.81,139.76,7.1546]
[1723812321202,43.14,139.82,139.74,47.956]
[1723812321805,43.14,139.82,139.75,0.12549]
[1723812322131,0.12549,139.81,139.75,7.28109]
[1723812322317,7.153,139.81,139.76,7.1549]
[1723812322515,43.14,139.84,139.77,0.12549]
[1723812322822,27.1516,139.83,139.79,17.8839]
[1723812323021,27.1516,139.83,139.78,7.154]
[1723812323022,20.0,139.83,139.78,7.154]
[1723812323228,27.1516,139.83,139.78,7.154]
[1723812323529,27.1516,139.83,139.74,30.0667]
[1723812323530,50.2939,139.79,139.74,30.0667]
[1723812324096,50.2939,139.79,139.74,37.2226]
[1723812324299,50.2939,139.79,139.74,30.0667]
[1723812324532,43.14,139.79,139.74,37.2227]
[1723812324833,7.1531,139.8,139.74,37.2227]
[1723812325043,7.1537,139.79,139.74,37.2227]
[1723812325342,43.14,139.79,139.74,30.0667]
[1723812325631,0.12549,139.78,139.74,30.0667]
[1723812326136,43.14,139.81,139.74,47.9569]
[1723812326333,20.12549,139.8,139.74,47.9569]
[1723812326505,20.12549,139.8,139.75,7.1551]
[1723812326705,39.3962,139.89,139.77,7.1545]
[1723812326706,43.14,139.83,139.77,7.1545]
[1723812326903,43.14,139.83,139.74,30.0667]
[1723812327104,39.3962,139.89,139.74,30.0667]
[1723812327105,43.14,139.79,139.74,30.0667]
[1723812327899,43.14,139.86,139.77,7.1545]
[1723812327900,43.14,139.83,139.77,7.1545]
[1723812328111,43.14,139.83,139.74,47.9559]
[1723812328309,20.0,139.82,139.77,17.8863]
[1723812328638,43.14,139.85,139.78,7.1536]
[1723812328814,43.14,139.87,139.79,7.1535]
[1723812329016,43.14,139.87,139.78,7.27949]
[1723812329637,7.1515,139.83,139.79,7.1535]
[1723812329949,43.14,139.87,139.8,7.153]
[1723812329950,7.1506,139.85,139.8,7.153]
[1723812330610,7.15,139.86,139.81,7.1524]
[1723812330845,7.15,139.86,139.83,32.643]
[1723812331012,10.0,139.9,139.83,32.643]
[1723812331212,7.1485,139.89,139.84,7.27639]
[1723812331711,7.1486,139.89,139.84,7.27639]
[1723812331936,7.1486,139.89,139.84,7.1509]
[1723812332240,17.148,139.9,139.85,7.1505]
[1723812332450,7.1474,139.91,139.86,7.27529]
[1723812332663,7.148,139.9,139.86,0.12549]
[1723812332818,43.14,139.89,139.83,50.521]
[1723812333156,43.14,139.89,139.83,57.6723]
[1723812333310,43.14,139.91,139.83,57.6724]
[1723812333659,43.14,139.93,139.86,7.1499]
[1723812333946,43.14,139.91,139.84,0.12549]
[1723812334147,43.14,139.93,139.85,17.8753]
[1723812334381,43.14,139.93,139.86,7.27499]
[1723812334646,43.14,139.93,139.86,0.12549]
[1723812334952,43.14,139.93,139.87,7.149]
[1723812335109,43.14,139.95,139.88,17.8723]
[1723812335308,17.3984852,139.97,139.86,0.12549]
[1723812335309,43.14,139.93,139.86,0.12549]
[1723812335528,43.14,139.93,139.85,17.8759]
[1723812335741,43.14,139.91,139.83,32.643]
[1723812335943,43.14,139.87,139.78,52.5198]
[1723812336147,43.14,139.85,139.78,45.366]
[1723812336538,7.1519,139.83,139.78,52.5199]
[1723812336737,7.1535,139.79,139.78,32.5667]
[1723812336925,7.1535,139.79,139.74,44.7337]
[1723812336926,7.27899,139.79,139.74,44.7337]
[1723812337155,7.1535,139.79,139.74,44.7337]
[1723812337355,7.1541,139.78,139.74,44.7337]
[1723812337527,7.1546,139.77,139.74,44.7337]
[1723812337925,7.1553,139.76,139.74,44.7337]
[1723812338158,43.14,139.81,139.74,44.7337]
[1723812338362,43.14,139.79,139.74,44.7337]
[1723812338657,20.25098,139.78,139.7,44.7337]
[1723812338859,65.25098,139.78,139.7,44.7337]
[1723812339045,7.1546,139.77,139.71,7.1572]
[1723812339419,20.25098,139.78,139.72,7.1571]
[1723812339654,27.40508,139.78,139.72,7.1571]
[1723812339861,27.40508,139.78,139.71,17.8931]
[1723812339862,0.12549,139.78,139.71,17.8931]
[1723812340034,43.14,139.82,139.73,17.8905]
[1723812340847,43.14,139.82,139.75,7.1556]
[1723812341231,43.14,139.86,139.76,63.01329]
[1723812341430,43.14,139.86,139.78,13.2364]
[1723812341758,43.14,139.86,139.79,7.1534]
[1723812341947,43.14,139.9,139.8,30.5112]
[1723812342256,43.14,139.9,139.82,0.12549]
[1723812342436,43.14,139.9,139.81,38.00589]
[1723812342643,43.14,139.88,139.81,25.0329]
[1723812343175,43.14,139.88,139.82,7.152]
[1723812343351,43.14,139.88,139.8,30.5112]
[1723812343869,43.14,139.88,139.8,37.6642]
[1723812344176,43.14,139.88,139.8,48.3927]
[1723812344484,7.1489,139.88,139.83,25.03]
[1723812345045,7.1477,139.91,139.86,7.1498]
[1723812345250,43.14,139.93,139.85,17.8754]
[1723812345251,7.147,139.92,139.87,7.1493]
[1723812345468,50.2868,139.93,139.88,7.1489]
[1723812345777,50.2868,139.93,139.87,17.8728]
[1723812345778,7.1469,139.92,139.89,32.2396]
[1723812345974,7.1475,139.91,139.89,32.2396]
[1723812346172,43.14,139.92,139.89,32.2396]
[1723812346345,43.14,139.94,139.89,32.2396]
[1723812346547,43.14,139.96,139.89,32.2396]
[1723812347590,43.14,139.94,139.89,32.2396]
[1723812347773,10.0,139.97,139.86,12.2724]
[1723812347774,43.14,139.92,139.86,12.2724]
[1723812348379,43.14,139.94,139.86,30.1465]
[1723812348581,27.1468,139.93,139.88,7.1489]
[1723812348784,27.1468,139.93,139.86,12.2724]
[1723812348785,43.14,139.92,139.86,12.2724]
[1723812349092,43.14,139.92,139.86,19.4219]
[1723812349093,7.1475,139.91,139.86,19.4219]
[1723812349293,27.1468,139.93,139.88,7.1489]
[1723812349592,7.1473,139.92,139.87,7.1493]
[1723812349889,7.1475,139.91,139.86,19.4223]
[1723812350063,20.0,139.93,139.87,17.8725]
[1723812350579,43.14,139.94,139.88,0.12549]
[1723812350791,43.14,139.94,139.86,12.39789]
[1723812350792,20.0,139.93,139.86,12.2724]
[1723812350996,7.1478,139.91,139.86,12.2724]
[1723812351364,20.0,139.93,139.86,12.2724]
[1723812351365,7.1481,139.9,139.86,12.2724]
[1723812351688,7.1481,139.9,139.84,49.8841]
[1723812351689,20.12549,139.89,139.84,32.007]
[1723812351859,7.1491,139.88,139.84,32.007]
[1723812352060,20.25098,139.89,139.84,39.1576]
[1723812352278,27.39988,139.89,139.84,39.1576]
[1723812352482,27.39988,139.89,139.84,32.007]
[1723812352483,20.25098,139.89,139.84,32.007]
[1723812352679,20.25098,139.89,139.84,39.1579]
[1723812352884,27.27399,139.89,139.84,32.007]
[1723812353174,27.27399,139.89,139.84,39.1576]
[1723812353378,27.1485,139.89,139.84,39.1576]
[1723812353571,7.1479,139.91,139.84,32.007]
[1723812353792,43.14,139.94,139.85,17.8755]
[1723812354090,43.14,139.94,139.85,18.00099]
[1723812354272,43.14,139.94,139.87,17.8729]
[1723812354608,43.14,139.92,139.84,49.8841]
[1723812354764,43.14,139.9,139.84,62.9712]
[1723812355999,0.25098,139.89,139.84,62.9712]
[1723812356496,43.14,139.92,139.84,62.9712]
[1723812356698,65.0,139.91,139.84,62.9712]
[1723812356876,20.0,139.91,139.85,7.1504]
[1723812357075,20.0,139.91,139.84,62.9712]
[1723812357076,20.0,139.91,139.86,7.1498]
[1723812357285,20.0,139.93,139.87,7.1494]
[1723812357661,43.14,139.92,139.85,0.12549]
[1723812357891,43.14,139.88,139.84,45.0941]
[1723812358195,43.14,139.88,139.72,43.14]
[1723812358196,43.14,139.86,139.8,69.6893]
[1723812358397,43.14,139.86,139.8,44.6538]
[1723812358695,20.0,139.9,139.8,44.6538]
[1723812358696,43.14,139.84,139.8,44.6538]
[1723812358896,0.12549,139.83,139.8,44.6538]
[1723812359193,0.25098,139.83,139.8,44.6538]
[1723812359790,27.1509,139.85,139.8,44.6538]
[1723812359987,43.14,139.88,139.8,44.6538]
[1723812360178,20.0,139.87,139.83,7.1515]
[1723812360378,20.0,139.87,139.81,17.8804]
[1723812360899,7.1489,139.88,139.83,7.1515]
[1723812361078,43.14,139.93,139.83,17.8779]
[1723812361277,7.1484,139.89,139.84,7.151]
[1723812361601,43.14,139.93,139.83,25.0293]
[1723812361602,7.149,139.88,139.83,25.0293]
[1723812361788,43.14,139.91,139.83,17.8779]
[1723812361994,7.1489,139.89,139.84,7.1509]
[1723812362306,43.14,139.91,139.83,25.0293]
[1723812362307,7.149,139.88,139.83,25.0293]
[1723812362483,7.1494,139.87,139.82,7.1519]
[1723812362689,7.1501,139.86,139.81,7.1525]
[1723812362886,43.14,139.89,139.8,69.6889]
[1723812362887,7.1505,139.85,139.8,69.6889]
[1723812363407,0.12549,139.84,139.8,69.689]
[1723812363901,0.12549,139.85,139.81,7.1524]
[1723812364100,0.12549,139.85,139.83,7.1514]
[1723812364266,7.1501,139.86,139.81,7.1524]
[1723812364467,0.12549,139.85,139.82,7.1519]
[1723812364699,7.40098,139.86,139.81,7.1524]
[1723812365075,7.40098,139.86,139.82,7.152]
[1723812365278,0.25098,139.86,139.82,7.152]
[1723812365471,20.0,139.88,139.82,17.8792]
[1723812365693,7.1495,139.87,139.83,7.1514]
[1723812365895,20.0,139.96,139.82,17.8792]
[1723812365896,7.149,139.88,139.82,17.8792]
[1723812366091,20.0,139.96,139.82,17.8792]
[1723812366092,43.14,139.91,139.82,17.8792]
[1723812366394,43.14,139.91,139.84,17.8766]
[1723812366600,7.40009372,139.94,139.84,17.8766]
[1723812366601,43.14,139.93,139.84,17.8766]
[1723812367121,7.147,139.92,139.87,7.1494]
[1723812367303,13.239,139.99,139.87,45.4377]
[1723812367507,7.146,139.94,139.89,7.1479]
[1723812368029,7.1455,139.95,139.9,7.1479]
[1723812368232,10.0,139.97,139.93,7.1464]
[1723812368532,17.1444,139.97,139.92,7.1468]
[1723812368754,10.0,139.97,139.9,17.8688]
[1723812368896,10.0,139.97,139.95,7.1451]
[1723812369091,10.0,139.97,139.94,7.1458]
[1723812369312,10.0,139.97,139.95,7.1453]
[1723812370021,10.0,139.97,139.96,40.0492]
[1723812370324,0.8350588,140.0,139.98,7.1437]
[1723812370908,0.8350588,140.0,139.99,7.1433]
[1723812371306,0.8350588,140.0,139.97,17.8597]
[1723812371499,0.8350588,140.0,139.99,7.1433]
[1723812371700,0.8350588,140.0,139.97,17.8597]
[1723812371701,0.8350588,140.0,139.98,7.1438]
[1723812372295,0.8350588,140.0,139.97,17.8597]
[1723812372933,0.8350588,140.0,139.99,7.1433]
[1723812373132,7.1393,140.07,140.0,17.8569]
[1723812373843,43.14,140.06,140.0,17.8569]
[1723812374007,7.1406,140.05,140.0,17.8569]
[1723812374346,7.1406,140.05,139.96,32.9044]
[1723812374347,7.1433,140.0,139.96,32.9044]
[1723812374515,43.14,140.0,139.96,32.9044]
[1723812374939,43.14,140.02,139.96,50.7655]
[1723812375438,0.12549,140.01,139.97,7.1443]
[1723812375603,0.25098,140.01,139.97,7.1443]
[1723812376022,0.25098,140.01,139.96,50.7655]
[1723812376023,0.12549,140.01,139.99,7.1431]
[1723812376224,7.1407,140.05,139.99,25.0015]
[1723812376513,7.1432,140.0,139.96,32.9044]
[1723812376831,51.52,140.01,139.96,32.9044]
[1723812377028,7.1417,140.03,139.97,7.1438]
[1723812377208,0.12549,140.02,139.97,7.1438]
[1723812377402,58.6608,140.04,139.98,7.1437]
[1723812377712,51.52,140.07,139.98,0.12549]
[1723812377713,7.1405,140.05,139.98,0.12549]
[1723812377913,51.52,140.07,139.98,0.12549]
[1723812377914,7.1408,140.04,139.98,7.1434]
[1723812378414,7.1408,140.04,139.99,7.1432]
[1723812378606,7.1401,140.06,140.0,7.1427]
[1723812378817,20.0,140.05,140.0,7.1427]
[1723812379142,20.0,140.05,139.97,17.98539]
[1723812379143,7.1403,140.05,139.97,17.98539]
[1723812379353,58.6597,140.07,140.01,7.1419]
[1723812379716,58.6597,140.07,140.0,17.8569]
[1723812379717,51.52,140.07,140.0,17.8569]
[1723812379946,51.52,140.07,139.98,45.25098]
[1723812379947,51.52,140.07,139.98,0.12549]
[1723812380153,51.52,140.04,139.97,17.8606]
[1723812380314,20.0,140.1,139.96,32.9044]
[1723812380315,51.52,140.01,139.96,32.9044]
[1723812380524,51.52,140.01,139.96,40.0488]
[1723812380841,51.52,140.04,139.98,17.8592]
[1723812381006,51.52,140.07,139.98,17.8592]
[1723812381216,7.1407,140.05,140.0,7.1427]
[1723812381439,0.12549,140.04,140.0,7.1427]
[1723812381638,7.1407,140.05,140.0,7.1427]
[1723812381845,20.0,140.06,140.02,7.1418]
[1723812382138,51.52,140.07,140.02,7.1417]
[1723812382344,51.52,140.07,140.0,17.8562]
[1723812382642,58.6593,140.07,140.02,7.1416]
[1723812383641,51.52,140.07,140.02,17.8533]
[1723812383816,51.52,140.1,140.02,17.8533]
[1723812384013,7.1382,140.09,140.04,20.0415]
[1723812384485,7.1382,140.09,140.02,17.8533]
[1723812384486,51.52,140.1,140.02,17.8533]
[1723812384740,51.52,140.1,139.97,12.9007]
[1723812384741,51.52,140.05,139.97,12.9007]
[1723812384954,7.1433,139.99,139.96,32.9044]
[1723812385257,7.1438,139.98,139.96,32.9044]
[1723812385408,51.52,140.0,139.93,12.9007]
[1723812385610,51.52,140.0,139.94,17.8639]
[1723812385828,0.25098,139.99,139.94,17.8639]
[1723812386032,0.12549,139.99,139.95,7.1454]
[1723812386231,7.39468,139.99,139.94,17.8639]
[1723812386447,0.25098,139.99,139.94,25.0097]
[1723812386640,7.39438,139.99,139.94,25.0097]
[1723812387551,0.25098,139.99,139.95,7.145]
[1723812387843,0.12549,139.99,139.95,7.145]
[1723812388014,51.52,140.0,139.94,17.8639]
[1723812388230,51.52,140.07,139.98,7.1434]
[1723812388431,51.52,140.07,139.96,17.8614]
[1723812388432,4.46215395,140.06,139.96,17.8614]
[1723812388672,7.1423,140.01,139.96,25.0058]
[1723812389027,7.1414,140.03,139.98,7.1438]
[1723812390238,7.1413,140.03,139.98,7.1437]
[1723812390435,7.1413,140.03,139.96,17.8614]
[1723812390436,51.52,140.01,139.93,30.7665]
[1723812390649,45.12549,140.0,139.93,30.7665]
[1723812390963,45.12549,140.0,139.91,30.685]
[1723812391172,71.64549,139.99,139.92,17.8665]
[1723812391356,7.1444,139.97,139.92,25.0133]
[1723812391566,0.12549,139.98,139.91,30.685]
[1723812391567,7.1463,139.94,139.91,30.685]
[1723812391865,58.91598,139.96,139.91,37.8324]
[1723812392038,7.1454,139.95,139.91,30.685]
[1723812392231,0.25098,139.94,139.91,30.685]
[1723812392430,0.12549,139.94,139.91,30.685]
[1723812392670,7.1459,139.94,139.89,38.0961]
[1723812392881,0.12549,139.93,139.89,38.0961]
[1723812393163,0.12549,139.95,139.89,30.9478]
[1723812393574,12.7561,140.02,139.91,17.8676]
[1723812393746,7.1448,139.97,139.92,7.1468]
[1723812394076,7.1449,139.96,139.91,25.0149]
[1723812394535,0.12549,139.97,139.9,7.1478]
[1723812394734,7.1454,139.95,139.9,7.1478]
[1723812394945,0.25098,139.94,139.89,13.0771]
[1723812395141,0.25098,139.94,139.87,39.2124]
[1723812395142,51.77098,139.93,139.87,32.0631]
[1723812395475,0.12549,139.92,139.87,32.0631]
[1723812395775,0.12549,139.92,139.79,35.7668]
[1723812395776,51.52,139.9,139.84,7.1509]
[1723812396143,51.52,139.9,139.83,30.4652]
[1723812396144,0.12549,139.88,139.83,30.4652]
[1723812396562,20.12549,139.88,139.83,30.4652]
[1723812396782,20.0,139.88,139.83,30.4652]
[1723812396983,0.25098,139.89,139.83,30.4652]
[1723812396984,0.12549,139.89,139.83,30.4652]
[1723812397285,51.52,139.93,139.84,17.8766]
[1723812397446,69.71067259,139.92,139.85,7.1504]
[1723812397779,65.25098,139.92,139.85,7.1504]
[1723812397986,42.98,139.95,139.86,17.8738]
[1723812398280,42.98,139.97,139.88,17.8713]
[1723812399166,50.1244,139.97,139.9,17.8691]
[1723812399366,42.98,139.99,139.9,12.812]
[1723812399572,42.98,139.99,139.92,17.8665]
[1723812399760,4.46268697,140.02,139.92,17.8665]
[1723812399761,42.98,140.01,139.92,17.8665]
[1723812399958,7.1434,139.99,139.94,7.1458]
[1723812400149,7.1444,139.97,139.92,25.013]
[1723812400645,7.1439,139.98,139.93,7.1463]
[1723812400845,58.6733,139.99,139.94,7.1457]
[1723812401472,7.1439,139.98,139.93,7.1464]
[1723812401682,51.53,139.99,139.92,17.8665]
[1723812401975,58.6734,139.99,139.94,7.1454]
[1723812402179,0.12549,139.98,139.94,7.1454]
[1723812402360,51.53,139.99,139.95,7.1453]
[1723812402564,51.53,139.99,139.92,17.8665]
[1723812402565,58.6733,139.99,139.94,7.1458]
[1723812403370,51.53,139.99,139.94,17.864]
[1723812403577,58.6719,140.02,139.97,7.1443]
[1723812403788,7.1423,140.01,139.96,7.1447]
[1723812403963,7.1437,139.99,139.94,17.864]
[1723812404173,7.1432,140.0,139.95,7.1453]
[1723812404363,11.60712056,140.01,139.96,7.1448]
[1723812405192,0.25098,140.0,139.94,17.864]
[1723812405366,51.65549,140.02,139.91,68.2509]
[1723812405367,58.6723,140.02,139.97,7.1443]
[1723812405557,7.1424,140.01,139.96,25.0057]
[1723812406304,7.1414,140.03,139.96,17.861]
[1723812406593,7.1414,140.03,139.99,7.1433]
[1723812406769,4.46516114,140.04,139.99,7.1433]
[1723812407091,4.46516114,140.04,139.99,40.1876]
[1723812407681,4.46541672,140.04,139.99,40.1876]
[1723812407990,4.46546136,140.04,139.99,33.0443]
[1723812408368,4.46546136,140.04,140.0,17.8561]
[1723812408595,4.46546136,140.06,140.0,17.8561]
[1723812410095,4.46546136,140.06,140.0,24.9988]
[1723812410471,24.46546136,140.06,140.0,24.9988]
[1723812410668,0.25098,140.05,140.0,24.9988]
[1723812411088,7.39168,140.05,140.0,24.9988]
[1723812411291,0.25098,140.05,140.0,24.9988]
[1723812411493,0.25098,140.05,140.01,7.1421]
[1723812411719,31.6006268,140.06,140.01,7.1421]
[1723812412017,24.4608268,140.06,140.02,7.1415]
[1723812412205,24.4608268,140.06,140.01,7.1422]
[1723812412376,24.4608268,140.06,140.0,17.8561]
[1723812412377,4.4608268,140.06,140.0,17.8561]
[1723812412579,11.6006268,140.06,140.0,17.8561]
[1723812412779,4.4608268,140.06,140.0,17.8561]
[1723812413106,58.6693,140.07,140.0,17.8561]
[1723812413307,4.4608268,140.06,140.0,17.8561]
[1723812413810,0.12549,140.05,140.0,17.8561]
[1723812413988,0.12549,140.05,140.02,7.1416]
[1723812414184,4.4608268,140.06,140.0,17.8561]
[1723812414615,4.4608268,140.06,140.02,7.1414]
[1723812415304,51.53,140.04,139.96,17.8613]
[1723812415509,4.5863168,140.03,139.96,17.8613]
[1723812415701,4.5863168,140.03,139.94,45.5201]
[1723812415702,0.12549,140.0,139.94,45.5201]
[1723812416018,45.37647,140.0,139.94,45.5201]
[1723812416193,4.70987903,140.0,139.94,63.3839]
[1723812416700,7.1437,139.99,139.94,70.5297]
[1723812416912,0.25098,139.98,139.94,70.5297]
[1723812417500,7.39488,139.98,139.94,63.3839]
[1723812417685,0.25098,139.98,139.94,70.5297]
[1723812418333,7.1468,139.93,139.89,32.2111]
[1723812418543,7.146,139.94,139.89,32.2111]
[1723812418832,0.25098,139.93,139.89,39.3594]
[1723812419127,0.12549,139.93,139.89,32.2111]
[1723812419313,4.70576557,139.94,139.89,32.2111]